bitfinex/quotes_ETHUSD_20250115
["timestamp","ask_amount","ask_price","bid_price","bid_amount"]
[1736952140000,0.5158,3295.2,3294.9,0.02927693]
[1736952140172,3.03399,3296.0,3294.9,3.06425693]
[1736952140498,3.03399,3296.0,3294.9,0.02927693]
[1736952140499,0.69619937,3296.0,3294.9,0.02927693]
[1736952140701,3.0,3296.5,3295.2,3.0347]
[1736952140702,3.03378,3296.3,3295.2,3.0347]
[1736952140902,6.03354,3296.5,3295.3,3.03458]
[1736952141201,3.03336,3296.7,3295.6,3.03432]
[1736952141406,5.98213,3297.4,3295.9,3.03399]
[1736952141569,1.21420557,3297.3,3296.0,0.0296991]
[1736952141898,3.0,3297.0,3295.2,3.03469]
[1736952142104,0.55,3296.9,3295.0,0.781]
[1736952142301,6.03352,3296.5,3295.3,0.02976182]
[1736952142506,3.03435,3295.6,3295.1,0.02945365]
[1736952142663,0.8079,3295.4,3294.8,1.0]
[1736952142867,0.8079,3295.4,3295.2,0.02951305]
[1736952142868,3.84244,3295.4,3295.2,0.02951305]
[1736952143064,3.84244,3295.4,3294.8,1.0]
[1736952143288,0.8079,3295.4,3295.3,0.02950409]
[1736952143495,0.8079,3295.4,3294.8,1.0]
[1736952143668,3.4111335,3295.3,3294.8,1.0]
[1736952144101,3.4111335,3295.3,3294.9,0.02857554]
[1736952144299,0.4111335,3295.3,3294.9,0.02857554]
[1736952144499,0.8079,3295.4,3294.8,1.0]
[1736952144500,3.0,3295.1,3294.8,1.0]
[1736952144764,0.8079,3295.4,3294.8,1.0]
[1736952145315,3.0,3295.1,3294.8,1.0]
[1736952145462,3.03488,3295.1,3294.8,1.0]
[1736952145782,6.84289,3294.9,3294.8,1.0]
[1736952145996,7.91997937,3294.9,3294.8,1.0]
[1736952148234,3.8079,3294.9,3294.8,1.0]
[1736952148598,3.0,3294.9,3294.8,1.0]
[1736952148802,0.8079,3295.4,3294.8,1.0]
[1736952149198,3.84245,3295.4,3294.8,1.0]
[1736952149552,0.8079,3295.4,3294.8,1.0]
[1736952149697,0.684241,3295.3,3294.8,1.0]
[1736952149897,3.03495,3295.0,3294.8,1.0]
[1736952150124,3.8079,3295.4,3294.8,1.0]
[1736952150125,0.8079,3295.4,3294.8,1.0]
[1736952150455,3.03409,3295.9,3294.8,1.0]
[1736952150609,3.03409,3295.9,3294.9,3.03498]
[1736952150819,0.8079,3296.5,3295.0,0.55]
[1736952151199,0.8079,3296.5,3295.2,0.781]
[1736952151362,3.92800369,3297.1,3295.5,0.55]
[1736952151363,0.8079,3297.1,3295.5,0.55]
[1736952151574,0.8079,3297.1,3295.9,0.55]
[1736952151861,0.8079,3297.1,3296.2,3.03379]
[1736952152060,0.8079,3297.1,3295.9,0.55]
[1736952152207,4.17800369,3298.0,3295.9,9.42]
[1736952152208,0.8079,3297.9,3295.9,9.42]
[1736952152407,0.8079,3297.9,3296.1,0.55]
[1736952152622,0.8079,3297.9,3297.2,3.03287]
[1736952152844,0.8079,3297.9,3296.5,0.781]
[1736952153261,3.03263,3297.5,3296.5,0.781]
[1736952153458,0.8079,3297.9,3296.5,1.7461]
[1736952153692,3.03232,3297.8,3296.4,8.87]
[1736952153973,3.0,3297.4,3296.3,3.03365]
[1736952154111,3.0,3296.9,3296.0,0.781]
[1736952154311,3.0,3296.9,3296.1,3.03382]
[1736952154312,0.7618,3296.9,3296.1,3.03382]
[1736952154513,0.7618,3297.4,3296.0,0.55]
[1736952154811,0.7618,3297.4,3296.3,3.03361]
[1736952155120,0.7618,3297.4,3296.4,3.03358]
[1736952155314,0.7618,3297.4,3296.0,3.58393]
[1736952155315,1.141242,3297.4,3296.0,3.58393]
[1736952155539,0.7618,3297.4,3296.0,3.58393]
[1736952155812,3.7618,3297.4,3296.4,3.03359]
[1736952156079,3.7618,3297.4,3296.5,0.03033235]
[1736952156080,0.7618,3297.4,3296.5,0.03033235]
[1736952156217,0.7618,3298.0,3297.4,3.0326]
[1736952156416,0.7618,3298.8,3297.5,0.8376256]
[1736952156636,0.7618,3298.8,3298.1,3.03201]
[1736952157017,0.7618,3298.8,3298.1,3.03196]
[1736952157212,0.7618,3298.8,3297.6,0.55]
[1736952157764,0.7618,3298.8,3298.0,3.0321]
[1736952158742,0.7618,3298.8,3298.2,3.03194]
[1736952158941,3.0,3299.3,3297.7,3.03241]
[1736952158942,0.7618,3299.3,3297.7,0.55]
[1736952159212,0.7618,3299.3,3297.9,3.03223]
[1736952159500,0.7618,3299.7,3298.7,3.03148]
[1736952160302,0.7618,3299.7,3298.5,3.03168]
[1736952160442,0.7618,3299.7,3298.7,3.03143]
[1736952160895,0.7618,3299.7,3298.5,0.58031052]
[1736952161052,0.5,3300.0,3298.9,3.03131]
[1736952161262,0.5,3300.0,3298.6,3.03158]
[1736952161454,0.5,3300.0,3299.0,3.03121]
[1736952161765,0.5,3300.0,3299.3,0.8073]
[1736952162349,0.5,3300.0,3299.5,3.03072]
[1736952162892,0.5,3300.0,3299.5,3.03067]
[1736952163864,0.5,3300.0,3299.3,0.8073]
[1736952164043,0.5,3300.0,3299.1,3.03104]
[1736952164249,0.5,3300.0,3299.1,0.253]
[1736952164698,0.5,3300.0,3298.9,0.8073]
[1736952165048,0.853013,3300.0,3299.0,3.03118]
[1736952165249,0.853013,3300.0,3299.2,3.03101]
[1736952165551,0.5,3300.0,3298.9,0.8073]
[1736952165868,0.5,3300.0,3299.1,3.03104]
[1736952166506,0.7618,3299.9,3298.7,9.123]
[1736952166980,0.7618,3299.9,3298.7,0.253]
[1736952167182,3.0,3299.5,3298.4,3.83906]
[1736952167399,0.603075,3299.5,3298.5,3.03167]
[1736952167626,3.0,3299.7,3298.5,3.03167]
[1736952167627,3.03062,3299.7,3298.5,3.03167]
[1736952167968,0.7618,3299.9,3298.5,3.03167]
[1736952168200,0.7618,3299.9,3298.5,0.55]
[1736952168437,0.7618,3299.9,3298.4,0.8073]
[1736952168571,0.7618,3299.9,3299.1,3.03103]
[1736952169363,0.7618,3299.9,3298.8,0.55]
[1736952169562,0.7618,3299.9,3298.9,3.0313]
[1736952169768,0.429219,3299.8,3298.5,3.03164]
[1736952169999,0.7618,3299.9,3298.6,0.55]
[1736952170202,0.7618,3299.9,3298.2,11.90187]
[1736952170203,0.7569,3299.1,3297.7,0.8141]
[1736952170412,3.0,3299.0,3297.9,3.03214]
[1736952171027,3.03126,3299.0,3297.9,3.03214]
[1736952171522,0.7569,3299.1,3298.1,3.03204]
[1736952171728,0.7569,3299.1,3297.7,0.8141]
[1736952171891,3.0,3298.8,3297.7,0.8141]
[1736952172224,3.7569,3299.1,3297.7,0.8141]
[1736952172367,3.7569,3299.1,3297.8,0.03031647]
[1736952172569,0.7569,3299.1,3297.7,0.8141]
[1736952172782,0.7569,3299.1,3297.7,1.09741594]
[1736952172997,0.7569,3299.1,3298.1,0.55]
[1736952173165,0.7569,3299.1,3298.3,3.03179]
[1736952173369,0.7569,3299.1,3297.7,1.0671]
[1736952173570,0.7569,3299.1,3297.7,4.509432]
[1736952173812,3.03143,3298.8,3297.7,4.509432]
[1736952174016,3.03151,3298.7,3297.7,0.409952]
[1736952174186,3.03151,3298.7,3297.6,3.03249]
[1736952174511,3.0,3299.0,3297.6,3.03249]
[1736952174723,3.03175,3298.5,3297.4,11.90267]
[1736952174915,0.7569,3298.4,3297.4,11.90267]
[1736952175115,3.0,3298.3,3297.4,3.03267]
[1736952175819,0.7569,3298.4,3297.4,0.55]
[1736952176208,0.7569,3298.8,3297.4,0.55]
[1736952176422,0.7569,3298.8,3297.4,0.58031596]
[1736952176628,0.7569,3298.8,3297.6,0.55]
[1736952176790,0.7569,3298.8,3297.7,0.35826]
[1736952177137,0.7569,3298.8,3297.3,3.8141]
[1736952177431,0.7569,3298.8,3297.9,3.03222]
[1736952177665,0.7569,3298.8,3298.0,3.03212]
[1736952177806,0.7569,3298.8,3297.4,0.55]
[1736952177807,0.7569,3298.8,3298.1,3.03201]
[1736952178341,0.7569,3298.8,3297.9,3.03219]
[1736952178544,3.7569,3298.8,3297.8,3.03224]
[1736952178834,3.7569,3298.8,3297.8,3.335464]
[1736952179219,3.78832,3298.8,3297.8,3.335464]
[1736952179839,3.03181,3298.4,3297.4,3.03266]
[1736952180035,0.7569,3298.8,3297.3,0.253]
[1736952180246,3.0319,3298.3,3297.2,5.38]
[1736952180537,3.0,3298.3,3297.2,5.38]
[1736952180739,3.0,3298.3,3297.3,3.03276]
[1736952180894,3.0,3298.3,3297.3,4.761036]
[1736952181248,5.27876824,3298.5,3297.1,8.87]
[1736952181470,3.03251,3297.6,3296.6,3.2864]
[1736952181591,0.7569,3297.5,3296.6,0.253]
[1736952181794,0.7569,3297.5,3296.6,3.28642]
[1736952182037,0.7569,3297.5,3296.6,0.581642]
[1736952182344,1.35076455,3298.5,3297.8,3.03225]
[1736952182651,1.35076455,3298.5,3297.8,3.03231]
[1736952182652,0.7569,3298.5,3297.8,3.03231]
[1736952182938,0.7569,3298.5,3297.2,8.87]
[1736952183161,0.7569,3298.5,3297.2,0.55]
[1736952183291,0.7569,3298.5,3297.3,0.03032084]
[1736952183493,0.7569,3298.5,3297.8,3.0323]
[1736952183841,0.7569,3298.5,3298.0,3.03206]
[1736952183995,0.7569,3298.5,3297.4,8.87]
[1736952184193,0.7569,3298.5,3297.4,11.90262]
[1736952184413,0.7569,3298.5,3297.4,8.87]
[1736952184607,3.0,3297.9,3296.7,0.7846]
[1736952184810,0.7584,3297.8,3296.8,3.0332]
[1736952184993,0.7584,3297.8,3296.7,1.75006]
[1736952184994,3.0,3297.4,3296.4,9.66678706]
[1736952185238,3.0,3297.5,3296.5,0.253]
[1736952185435,3.0,3297.5,3296.7,3.03331]
[1736952185637,0.7584,3297.8,3296.5,0.253]
[1736952185856,0.7584,3297.8,3297.2,3.03287]
[1736952186170,0.7584,3297.8,3296.9,0.58032629]
[1736952186307,0.7584,3298.2,3297.2,0.55]
[1736952186706,0.7584,3299.1,3297.9,3.03215]
[1736952186944,3.78956,3299.1,3298.0,3.03213]
[1736952187153,0.7584,3299.1,3297.9,0.7846]
[1736952187350,0.5,3300.0,3297.9,0.7846]
[1736952187351,0.60582679,3299.7,3298.2,0.55]
[1736952187536,0.7584,3299.9,3298.2,0.55]
[1736952187537,3.03067,3299.6,3298.2,0.55]
[1736952187853,3.03067,3299.6,3298.6,3.03157]
[1736952188039,0.303067,3299.5,3298.6,3.03157]
[1736952188352,3.303067,3299.5,3298.6,3.03157]
[1736952188558,0.303067,3299.5,3298.6,3.03157]
[1736952188747,0.303067,3299.5,3298.7,3.03147]
[1736952188940,3.0,3299.8,3298.3,0.55]
[1736952189254,3.0,3299.8,3298.8,3.03139]
[1736952189255,3.03048,3299.8,3298.8,3.03139]
[1736952189564,0.7584,3299.9,3298.9,3.587369]
[1736952189712,3.7584,3299.9,3299.0,3.0312]
[1736952189911,0.7584,3299.9,3299.1,3.0311]
[1736952190343,0.7584,3299.9,3298.9,0.253]
[1736952190526,3.03058,3299.7,3298.7,3.03142]
[1736952190731,3.409478,3299.7,3298.7,3.03142]
[1736952190959,3.409478,3299.7,3298.6,0.253]
[1736952190960,3.0,3299.4,3298.6,0.253]
[1736952191131,0.378898,3299.7,3298.5,3.03166]
[1736952191325,0.7584,3299.2,3298.2,5.38]
[1736952191637,0.7584,3299.2,3298.5,3.03166]
[1736952191847,0.7584,3299.2,3298.5,0.328466]
[1736952192152,0.7584,3299.2,3298.4,0.253]
[1736952193028,3.63206786,3300.2,3298.5,0.55]
[1736952193029,6.03048,3299.9,3298.5,0.55]
[1736952193281,0.7584,3299.8,3298.6,3.03158]
[1736952193439,3.0,3299.7,3298.5,0.55]
[1736952193632,0.7584,3299.8,3298.6,3.03154]
[1736952193827,3.03065,3299.7,3298.6,3.359994]
[1736952194578,3.03065,3299.7,3298.7,3.03146]
[1736952194744,0.7584,3299.8,3298.8,0.7846]
[1736952195080,0.7584,3299.8,3298.6,8.87]
[1736952195283,3.03133,3298.9,3298.2,1.25321706]
[1736952195448,0.7584,3299.0,3298.2,1.25321706]
[1736952195653,0.7584,3299.0,3298.3,1.25321706]
[1736952195963,3.7897,3299.0,3298.3,1.25321706]
[1736952196343,3.03133,3298.9,3298.0,1.25321706]
[1736952196527,3.7584,3299.0,3298.0,1.25321706]
[1736952196727,3.7584,3299.0,3298.0,4.28534706]
[1736952196964,3.7584,3299.0,3298.0,4.92811208]
[1736952197189,3.03143,3298.8,3298.1,1.25321706]
[1736952197477,3.78966,3299.0,3298.1,1.25321706]
[1736952197844,3.0,3298.9,3298.1,3.03203]
[1736952198170,0.7584,3299.5,3298.2,1.25321706]
[1736952198378,0.7584,3299.5,3298.8,3.0314]
[1736952198739,0.7584,3299.5,3298.8,0.30314]
[1736952198938,3.7584,3299.9,3299.1,3.03112]
[1736952199143,0.7584,3299.9,3298.7,4.28470706]
[1736952199339,0.7584,3299.9,3299.0,3.03121]
[1736952199548,0.7584,3299.9,3298.8,3.03138]
[1736952199784,3.0,3299.6,3299.2,1.25321706]
[1736952200085,0.7584,3299.9,3299.2,1.25321706]
[1736952200439,3.0,3299.6,3299.2,1.25321706]
[1736952200759,0.7584,3299.9,3299.2,1.25321706]
[1736952200967,0.42584,3299.8,3299.2,1.25321706]
[1736952201139,0.7584,3299.9,3299.2,1.25321706]
[1736952201493,0.7584,3299.9,3298.9,4.28447706]
[1736952201655,3.0,3299.7,3298.9,4.28447706]
[1736952201853,3.0305,3299.8,3298.9,4.28447706]
[1736952201854,3.0,3299.8,3298.9,1.25321706]
[1736952202066,0.7584,3299.9,3299.3,1.25321706]
[1736952202273,3.0,3299.6,3299.3,1.25321706]
[1736952202645,3.0,3299.6,3299.1,1.25321706]
[1736952202939,0.7584,3299.9,3299.1,1.25321706]
[1736952203281,3.0,3299.6,3299.1,1.25321706]
[1736952203485,3.0,3299.6,3299.0,1.25321706]
[1736952203640,0.7584,3299.9,3299.0,1.25321706]
[1736952204343,3.03058,3299.7,3299.0,1.25321706]
[1736952204544,0.7584,3299.9,3299.2,1.25321706]
[1736952204746,3.0,3299.4,3299.2,1.25321706]
[1736952204957,3.03086,3299.4,3299.2,1.25321706]
[1736952205187,3.78882,3299.9,3298.9,2.51907088]
[1736952205188,3.0,3299.8,3298.9,1.25321706]
[1736952205543,0.7584,3299.9,3298.9,1.25321706]
[1736952205773,6.78879,3299.9,3298.9,4.28448706]
[1736952205944,0.7584,3299.9,3298.9,1.25321706]
[1736952206157,0.7584,3299.9,3299.0,1.25321706]
[1736952206693,0.7584,3299.9,3299.1,3.03106]
[1736952206895,3.7584,3299.9,3299.1,4.28427706]
[1736952207359,0.7584,3299.9,3299.1,1.25321706]
[1736952207691,1.18424,3299.9,3299.0,1.25321706]
[1736952207901,3.0,3299.7,3299.0,1.25321706]
[1736952208089,3.03063,3299.7,3298.7,4.28469706]
[1736952208398,0.7584,3299.9,3298.7,1.25321706]
[1736952208697,3.0,3299.4,3298.7,1.25321706]
[1736952208902,3.7584,3299.9,3298.6,1.25321706]
[1736952209205,0.7584,3299.9,3299.0,3.03114]
[1736952209375,0.7584,3299.9,3299.1,0.303114]
[1736952209575,0.7584,3299.9,3299.1,3.03105]
[1736952210204,0.7584,3299.9,3299.0,3.03114]
[1736952210960,0.7584,3299.9,3298.8,1.25321706]
[1736952211479,0.7584,3299.9,3299.1,3.03105]
[1736952211787,3.7584,3299.9,3299.1,3.03105]
[1736952211959,3.03074,3299.6,3298.8,1.25321706]
[1736952212160,0.728871,3299.8,3298.8,1.25321706]
[1736952212402,3.0,3298.9,3298.8,1.25321706]
[1736952212587,3.0,3298.9,3298.4,1.25321706]
[1736952212588,6.03131,3298.9,3298.4,1.25321706]
[1736952212788,3.03117,3299.1,3298.4,1.25321706]
[1736952213098,3.78937,3299.3,3298.4,1.25321706]
[1736952213770,3.78937,3299.3,3298.3,4.92115316]
[1736952213771,0.7584,3299.3,3298.5,3.64903702]
[1736952214118,0.7584,3299.3,3298.2,1.25321706]
[1736952214262,0.7584,3299.3,3298.5,3.0316]
[1736952214458,0.7584,3299.3,3298.7,3.03148]
[1736952214660,0.8171,3299.7,3298.9,3.03126]
[1736952214884,0.8171,3299.7,3298.9,3.334386]
[1736952215192,0.8171,3299.7,3298.9,0.303126]
[1736952215392,0.8171,3299.7,3298.2,0.8256]
[1736952215704,4.42800369,3300.0,3298.2,0.8256]
[1736952215705,6.03149,3298.7,3298.6,1.25321706]
[1736952215910,7.39859,3298.7,3298.6,7.06e-06]
[1736952216066,6.95924369,3299.0,3297.8,1.26884277]
[1736952216067,3.032,3298.2,3297.8,1.26884277]
[1736952216266,6.03223,3297.9,3297.8,1.26884277]
[1736952216462,6.84933,3297.9,3297.8,1.26884277]
[1736952216716,12.31547069,3297.9,3297.8,1.26884277]
[1736952216928,0.8171,3297.7,3296.1,3.14883861]
[1736952217216,3.0,3296.7,3296.1,3.14883861]
[1736952217363,0.8171,3297.5,3296.1,3.46372247]
[1736952217565,0.8171,3297.5,3296.2,0.8256]
[1736952217783,0.8171,3297.5,3296.5,3.03342]
[1736952217981,0.8171,3297.5,3296.7,3.03331]
[1736952218226,0.8171,3297.5,3296.2,0.8256]
[1736952218369,0.8171,3297.5,3296.7,3.03327]
[1736952218565,0.8171,3297.5,3296.8,3.0332]
[1736952218814,0.8171,3297.5,3296.6,3.03336]
[1736952218965,3.0,3297.3,3296.3,3.28566]
[1736952219294,3.684984,3297.3,3296.3,3.03366]
[1736952220311,0.684984,3297.3,3296.4,3.03357]
[1736952220485,0.684984,3297.3,3296.2,0.8256]
[1736952220814,3.0,3297.3,3295.9,3.03407]
[1736952221110,3.0,3297.0,3296.0,3.03397]
[1736952221323,0.796,3297.2,3295.8,8.41415]
[1736952221513,0.796,3297.2,3296.2,3.03377]
[1736952221674,1.41646877,3297.2,3296.2,3.03377]
[1736952222011,1.86139365,3297.2,3296.2,3.03377]
[1736952222372,3.03299,3297.1,3296.0,3.03396]
[1736952222796,1.86139365,3297.2,3295.8,5.38]
[1736952222797,4.86139365,3297.2,3295.8,5.38]
[1736952222995,0.796,3297.2,3295.9,0.5803327]
[1736952223185,0.796,3297.2,3296.0,3.03398]
[1736952223593,0.796,3297.2,3295.9,0.55]
[1736952223819,0.796,3297.2,3296.6,3.03339]
[1736952224024,0.796,3297.6,3296.5,0.8227]
[1736952224242,0.796,3298.0,3296.7,8.87]
[1736952224446,0.796,3298.0,3297.2,3.03285]
[1736952224604,0.796,3298.0,3296.8,4.17224]
[1736952224928,0.739859,3298.6,3297.2,0.55]
[1736952224929,0.796,3298.4,3297.2,0.55]
[1736952225150,0.796,3298.4,3297.4,3.03269]
[1736952225293,0.796,3299.4,3298.2,0.8227]
[1736952225638,0.796,3299.4,3298.7,3.03149]
[1736952225639,0.33245914,3299.3,3298.7,3.03149]
[1736952225942,0.33245914,3299.3,3298.3,3.03186]
[1736952226139,0.33245914,3299.3,3298.6,3.03155]
[1736952226439,0.796,3299.4,3298.6,3.03155]
[1736952227129,0.796,3299.4,3298.7,3.03147]
[1736952227328,0.796,3299.4,3298.3,3.03181]
[1736952227539,0.796,3299.4,3298.0,0.252]
[1736952227750,0.796,3299.4,3298.1,0.55]
[1736952228042,3.0,3299.3,3298.4,3.03177]
[1736952228249,0.796,3299.4,3298.8,3.03135]
[1736952229089,0.796,3299.4,3298.6,3.03155]
[1736952229337,0.796,3299.4,3298.3,9.6927]
[1736952229633,0.796,3299.4,3298.5,3.03164]
[1736952229939,3.03095,3299.3,3298.3,11.90184]
[1736952230147,0.382695,3299.2,3298.3,11.90184]
[1736952230505,0.8249,3299.9,3298.5,8.87]
[1736952230710,0.8249,3299.9,3298.4,3.78985]
[1736952230711,0.8249,3299.9,3298.6,9.42]
[1736952230909,3.03007,3300.3,3298.9,0.7581]
[1736952230910,0.8249,3300.3,3298.9,0.7581]
[1736952231104,0.8249,3300.3,3299.8,3.03047]
[1736952231641,0.8249,3300.3,3299.7,3.0305]
[1736952232140,0.8249,3300.3,3299.6,3.03066]
[1736952232449,0.8249,3300.3,3299.4,3.03082]
[1736952233197,3.0,3300.2,3299.3,8.87]
[1736952233942,0.8249,3300.3,3299.5,3.03076]
[1736952234164,3.03013,3300.2,3299.3,8.87]
[1736952234321,3.0,3300.1,3299.3,8.87]
[1736952234521,0.35,3299.9,3299.3,8.87]
[1736952234722,0.35,3299.9,3299.3,11.90094]
[1736952234927,0.8249,3300.3,3299.0,0.252]
[1736952235258,0.8249,3300.3,3299.4,3.03084]
[1736952235628,3.0,3300.2,3299.2,3.031]
[1736952236023,3.0,3300.2,3299.0,0.252]
[1736952236246,0.8249,3300.3,3299.2,3.03103]
[1736952236564,0.8249,3300.3,3299.6,3.03066]
[1736952237349,0.8249,3300.3,3299.4,3.03084]
[1736952237949,0.8249,3300.3,3299.5,3.03073]
[1736952238983,4.0246002,3300.8,3299.9,3.03039]
[1736952238984,0.8249,3300.8,3299.9,3.03039]
[1736952239430,3.8249,3300.8,3299.9,3.03039]
[1736952240129,3.8249,3300.8,3299.3,8.87]
[1736952240130,1.2642,3300.0,3299.3,8.87]
[1736952240358,3.0,3299.9,3299.3,8.87]
[1736952240560,4.29455,3300.0,3299.5,3.03075]
[1736952240561,0.729455,3299.8,3299.5,3.03075]
[1736952240872,1.2642,3300.0,3299.6,3.03063]
[1736952241047,0.5,3300.0,3299.4,0.7654]
[1736952241246,0.5,3300.0,3299.5,3.03076]
[1736952241434,0.5,3300.0,3299.9,3.03039]
[1736952242127,0.5,3300.0,3299.9,3.31268745]
[1736952242311,0.7642,3301.0,3300.8,3.02953]
[1736952242495,0.59310122,3301.6,3300.9,3.02939]
[1736952242685,0.7642,3301.7,3301.1,3.02929]
[1736952243081,0.7642,3301.7,3300.7,0.03028895]
[1736952243340,0.7642,3301.7,3301.4,3.02901]
[1736952243634,0.16943302,3301.8,3301.7,3.02874]
[1736952244395,0.16943302,3301.8,3301.4,8.87]
[1736952244926,0.16943302,3301.8,3301.6,3.02882]
[1736952245108,0.16943302,3301.8,3301.4,8.87]
[1736952246236,0.16943302,3301.8,3300.9,0.252]
[1736952246436,0.16943302,3301.8,3301.2,3.02912]
[1736952246741,0.16943302,3301.8,3301.7,3.02874]
[1736952248010,3.02e-06,3301.8,3301.7,10.53702359]
[1736952248209,3.02e-06,3301.8,3301.7,11.27804369]
[1736952249104,3.02e-06,3301.8,3301.7,7.35004]
[1736952249300,3.02e-06,3301.8,3301.7,4.35004]
[1736952249499,3.02e-06,3301.8,3301.7,4.05204]
[1736952249702,3.41756602,3301.8,3301.7,0.252]
[1736952250540,3.41756602,3301.8,3301.7,3.28074]
[1736952250744,3.41756602,3301.8,3301.7,0.252]
[1736952250941,3.75932262,3301.8,3301.7,0.252]
[1736952251126,3.75932262,3301.8,3301.3,3.02909]
[1736952251328,3.41756602,3301.8,3301.3,3.02904]
[1736952252143,0.7983,3301.7,3301.0,3.02931]
[1736952252302,0.7983,3301.7,3301.3,3.02906]
[1736952252503,0.7983,3301.7,3300.9,1.0233]
[1736952252830,0.7983,3301.7,3301.2,3.02915]
[1736952253242,0.7983,3301.7,3300.9,1.0233]
[1736952253428,1.2198866,3301.7,3301.1,3.02925]
[1736952253829,1.2198866,3301.7,3300.9,1.0233]
[1736952254014,1.2198866,3301.7,3301.1,3.02922]
[1736952254223,1.2198866,3301.7,3300.9,1.0233]
[1736952254421,3.41756602,3301.8,3300.9,1.0233]
[1736952254757,3.41756602,3301.8,3301.4,3.02893]
[1736952255926,3.41756602,3301.8,3301.7,3.02874]
[1736952256127,3.41756602,3301.8,3301.5,3.02888]
[1736952256734,3.41756602,3301.8,3301.2,3.02911]
[1736952256970,3.41756602,3301.8,3300.9,1.0233]
[1736952256971,3.7983,3301.7,3300.5,0.7713]
[1736952257129,3.7983,3301.7,3300.5,3.02975]
[1736952257466,3.7983,3301.7,3300.8,3.02954]
[1736952257675,0.7983,3301.7,3300.4,0.03029167]
[1736952257821,0.7983,3301.7,3301.1,3.02928]
[1736952258146,0.7983,3301.7,3300.5,8.87]
[1736952258147,1.25406226,3301.7,3300.8,0.7713]
[1736952258354,1.25406226,3301.7,3301.0,3.02929]
[1736952258550,1.25406226,3301.7,3300.8,1.0233]
[1736952258868,1.25406226,3301.7,3301.0,3.02931]
[1736952259063,0.46716283,3301.6,3300.5,8.87]
[1736952259273,3.0,3301.5,3300.6,3.02967]
[1736952259726,0.7983,3301.5,3300.1,0.7713]
[1736952259926,3.0293,3301.1,3299.7,0.7713]
[1736952260174,0.38276,3301.0,3300.2,3.03011]
[1736952260479,0.7983,3301.2,3300.3,3.03002]
[1736952260677,3.82751,3301.2,3300.3,3.03002]
[1736952260887,0.7983,3301.2,3299.7,4.63831024]
[1736952261040,0.7983,3301.2,3300.1,3.03021]
[1736952261243,0.7983,3301.2,3300.0,11.87]
[1736952261244,0.7983,3301.7,3301.4,3.02897]
[1736952261486,4.08286369,3302.8,3300.8,3.02956]
[1736952261487,0.7983,3302.0,3301.0,0.252]
[1736952261668,0.7983,3302.0,3301.5,3.02886]
[1736952261859,0.7983,3302.0,3301.1,1.3213]
[1736952262072,3.02767,3302.9,3301.1,1.3213]
[1736952262380,0.7983,3302.4,3301.7,3.02874]
[1736952262781,0.7983,3302.4,3301.1,1.3213]
[1736952262981,0.7983,3302.4,3301.5,3.02889]
[1736952263483,2.43273807,3302.3,3301.3,3.02907]
[1736952263689,0.32310381,3302.2,3301.3,3.02907]
[1736952263847,0.7983,3302.1,3301.0,0.252]
[1736952265200,3.02858,3301.9,3301.0,0.252]
[1736952265490,0.7983,3301.7,3301.0,0.252]
[1736952265713,0.7983,3301.7,3300.7,3.02964]
[1736952265885,0.382703,3301.6,3300.5,3.28182]
[1736952266089,3.0,3301.4,3300.5,3.28182]
[1736952266546,3.0,3301.4,3299.9,8.87]
[1736952266547,3.0294,3301.0,3299.9,3.03036]
[1736952266749,0.7983,3301.1,3299.9,3.03035]
[1736952266977,0.7983,3301.1,3299.6,0.252]
[1736952266978,3.0,3300.8,3299.6,0.252]
[1736952267180,3.0,3300.8,3299.9,3.03032]
[1736952267384,3.602954,3300.8,3299.6,0.252]
[1736952267708,0.7983,3300.7,3299.9,3.03038]
[1736952268065,0.7983,3300.7,3299.5,0.252]
[1736952268471,0.7983,3300.7,3299.9,3.03036]
[1736952268651,0.7983,3300.7,3299.5,3.28272]
[1736952268857,0.7983,3300.7,3299.9,3.03038]
[1736952269192,0.7983,3300.7,3299.6,0.580272]
[1736952269349,0.7983,3300.7,3299.9,3.03031]
[1736952270953,0.7983,3300.7,3299.9,3.03030941]
[1736952271353,0.7983,3300.7,3299.6,0.252]
[1736952271562,0.79465472,3300.7,3299.9,3.03033]
[1736952272003,3.79465472,3300.7,3299.7,3.03049]
[1736952272309,3.79465472,3300.7,3299.9,3.03037]
[1736952272505,0.79465472,3300.7,3299.9,3.03037]
[1736952273101,0.79465472,3300.7,3299.7,0.328249]
[1736952273406,0.79465472,3300.7,3299.9,3.03037]
[1736952273926,0.79465472,3300.7,3300.0,0.03029962]
[1736952274228,0.79465472,3300.7,3300.1,3.03017]
[1736952274833,0.79465472,3300.7,3299.3,2.03376481]
[1736952275022,0.79465472,3300.7,3300.1,3.0302]
[1736952275223,0.79465472,3300.7,3299.7,0.0303018]
[1736952275396,0.79465472,3300.7,3299.6,3.0306]
[1736952275731,0.79465472,3300.7,3299.8,3.03039]
[1736952276116,3.82432472,3300.7,3299.6,3.03064]
[1736952276317,0.79465472,3300.7,3299.3,0.3927462]
[1736952276631,3.80653,3300.1,3299.2,13.16342481]
[1736952276814,0.7763,3300.1,3299.2,10.13246481]
[1736952277017,3.7763,3300.1,3299.2,1.26246481]
[1736952277192,3.7763,3300.1,3298.9,0.251]
[1736952277193,0.7763,3300.1,3298.9,0.251]
[1736952277397,0.7763,3300.1,3299.0,3.03118]